fUST/lending_fUST_20260522
["ID","MTS","AMOUNT","RATE_DAILY","PERIOD"]
[422808108,1779433844000,-519.49011893,7.497e-05,2]
[422808105,1779433844000,-519.49011893,7.497e-05,2]
[422808102,1779433844000,-500.0,7.496e-05,2]
[422808099,1779433844000,-500.0,7.496e-05,2]
[422808104,1779433844000,-499.99999999,7.496e-05,2]
[422808103,1779433844000,-210.59233706,7.496e-05,2]
[422808100,1779433844000,-510.12119938,7.496e-05,2]
[422808096,1779433844000,-475.20027375,7.496e-05,2]
[422808097,1779433844000,-24.79972625,7.496e-05,2]
[422808098,1779433844000,-360.18536856,7.496e-05,2]
[422808094,1779433844000,-474.17931475,7.496e-05,2]
[422808084,1779433844000,-203.105674,7.112e-05,2]
[422808093,1779433844000,-25.82068525,7.496e-05,2]
[422808091,1779433844000,-237.7471129,7.496e-05,2]
[422808089,1779433844000,-173.231,7.453e-05,2]
[422808087,1779433844000,-152.0,7.451e-05,7]
[422808090,1779433844000,-300.0,7.495e-05,2]
[422808088,1779433844000,-152.0,7.453e-05,7]
[422808107,1779433844000,-519.49011893,7.497e-05,2]
[422808081,1779433844000,-200.0,6.796e-05,2]
[422808083,1779433844000,-151.0,6.899e-05,2]
[422808085,1779433844000,-500.0,7.416e-05,2]
[422808086,1779433844000,-152.0,7.451e-05,7]
[422808082,1779433844000,-200.0,6.796e-05,7]
[422808092,1779433844000,-262.2528871,7.496e-05,2]
[422808109,1779433844000,-519.49011893,7.497e-05,2]
[422808101,1779433844000,-500.0,7.496e-05,2]
[422808110,1779433844000,-519.49011893,7.497e-05,2]
[422808111,1779433844000,-519.49011893,7.497e-05,2]
[422808135,1779433844000,-1657.2084574,7.498e-05,2]
[422808136,1779433844000,-131079.26452542,7.498e-05,2]
[422808132,1779433844000,-571.43913082,7.497e-05,2]
[422808134,1779433844000,-571.43913082,7.497e-05,2]
[422808133,1779433844000,-571.43913082,7.497e-05,2]
[422808130,1779433844000,-571.43913082,7.497e-05,2]
[422808131,1779433844000,-571.43913082,7.497e-05,2]
[422808128,1779433844000,-571.43913082,7.497e-05,2]
[422808129,1779433844000,-571.43913082,7.497e-05,2]
[422808127,1779433844000,-571.43913082,7.497e-05,2]
[422808125,1779433844000,-519.49011893,7.497e-05,2]
[422808126,1779433844000,-571.43913082,7.497e-05,2]
[422808137,1779433844000,-34720.39187155,7.498e-05,2]
[422808121,1779433844000,-519.49011893,7.497e-05,2]
[422808124,1779433844000,-519.49011893,7.497e-05,2]
[422808112,1779433844000,-519.49011893,7.497e-05,2]
[422808114,1779433844000,-447.74737586,7.497e-05,2]
[422808113,1779433844000,-71.74274307,7.497e-05,2]
[422808115,1779433844000,-519.49011893,7.497e-05,2]
[422808116,1779433844000,-519.49011893,7.497e-05,2]
[422808106,1779433844000,-519.49011893,7.497e-05,2]
[422808120,1779433844000,-519.49011893,7.497e-05,2]
[422808117,1779433844000,-519.49011893,7.497e-05,2]
[422808119,1779433844000,-519.49011893,7.497e-05,2]
[422808122,1779433844000,-519.49011893,7.497e-05,2]
[422808118,1779433844000,-519.49011893,7.497e-05,2]
[422808123,1779433844000,-519.49011893,7.497e-05,2]
[422808148,1779433847000,-266.93168484,6.307e-05,2]
[422808152,1779433847000,-300.0,6.307e-05,2]
[422808149,1779433847000,-33.06831516,6.307e-05,2]
[422808150,1779433847000,-300.0,6.307e-05,2]
[422808153,1779433847000,-300.0,6.307e-05,2]
[422808155,1779433847000,-43426.66273924,7.498e-05,2]
[422808154,1779433847000,-300.0,6.307e-05,2]
[422808151,1779433847000,-300.0,6.307e-05,2]
[422808157,1779433942000,-5000.0,6.244e-05,2]
[422808158,1779433945000,-394.16721333,6.275e-05,2]
[422808159,1779433945000,-300.0,6.306e-05,2]
[422808160,1779433945000,-300.0,6.307e-05,2]
[422808161,1779433945000,-300.0,6.307e-05,2]
[422808162,1779433945000,-300.0,6.307e-05,2]
[422808163,1779433945000,-300.0,6.307e-05,2]
[422808166,1779433945000,-300.0,6.307e-05,2]
[422808165,1779433945000,-300.0,6.307e-05,2]
[422808168,1779433945000,-300.0,6.307e-05,2]
[422808167,1779433945000,-300.0,6.307e-05,2]
[422808170,1779433945000,-420.0,6.937e-05,2]
[422808171,1779433945000,-1034.83278667,7.397e-05,2]
[422808164,1779433945000,-300.0,6.307e-05,2]
[422808169,1779433945000,-151.0,6.5e-05,2]
[422808172,1779433950000,-5000.0,6.212e-05,2]
[422808173,1779433972000,-5000.0,7.323e-05,2]
[422808174,1779433981000,-5000.0,7.397e-05,2]
[422808176,1779433988000,-4700.0,7.397e-05,2]
[422808175,1779433988000,-300.0,7.396e-05,2]
[422808178,1779433992000,-5000.0,7.397e-05,2]
[422808177,1779433992000,-5000.0,7.322e-05,2]
[422808179,1779434008000,-5000.0,7.397e-05,2]
[422808180,1779434013000,-5000.0,7.397e-05,2]
[422808181,1779434030000,-5000.0,7.323e-05,2]
[422808182,1779434036000,-5000.0,7.323e-05,2]
[422808184,1779434037000,-2091.66279122,7.398e-05,2]
[422808185,1779434037000,-5000.0,7.398e-05,2]
[422808183,1779434037000,-2908.33720878,7.397e-05,2]
[422808186,1779434044000,-5000.0,7.398e-05,2]
[422808187,1779434059000,-5000.0,7.324e-05,2]
[422808188,1779434112000,-5000.0,7.323e-05,2]
[422808190,1779434113000,-500.0,7.397e-05,2]
[422808189,1779434113000,-300.0,7.396e-05,2]
[422808192,1779434113000,-500.0,7.397e-05,2]
[422808193,1779434113000,-500.0,7.397e-05,2]
[422808194,1779434113000,-500.0,7.397e-05,2]
[422808191,1779434113000,-500.0,7.397e-05,2]
[422808196,1779434113000,-167.79124438,7.397e-05,2]
[422808195,1779434113000,-500.0,7.397e-05,2]
[422808198,1779434113000,-448.38405161,7.397e-05,2]
[422808199,1779434113000,-500.0,7.397e-05,2]
[422808200,1779434113000,-83.82470401,7.397e-05,2]
[422808201,1779434113000,-416.17529599,7.397e-05,2]
[422808203,1779434113000,-500.0,7.397e-05,2]
[422808202,1779434113000,-500.0,7.397e-05,2]
[422808204,1779434113000,-500.0,7.397e-05,2]
[422808205,1779434113000,-500.0,7.397e-05,2]
[422808197,1779434113000,-500.0,7.397e-05,2]
[422808207,1779434114000,-500.0,7.397e-05,2]
[422808208,1779434114000,-500.0,7.397e-05,2]
[422808206,1779434114000,-427.46316033,7.397e-05,2]
[422808210,1779434114000,-500.0,7.397e-05,2]
[422808211,1779434114000,-156.36154368,7.397e-05,2]
[422808209,1779434114000,-500.0,7.397e-05,2]
[422808212,1779434124000,-5000.0,7.323e-05,2]
[422808215,1779434176000,-4523.1092215,7.323e-05,2]
[422808214,1779434176000,-325.8907785,6.899e-05,2]
[422808213,1779434176000,-151.0,6.899e-05,2]
[422808219,1779434182000,-364.77932759,7.398e-05,2]
[422808220,1779434182000,-3358.04812559,7.398e-05,2]
[422808218,1779434182000,-343.63845632,7.397e-05,2]
[422808216,1779434182000,-456.643312,6.899e-05,2]
[422808217,1779434182000,-476.8907785,7.323e-05,2]
[422808221,1779434191000,-202.852962,7.128e-05,2]
[422808222,1779434191000,-4797.147038,7.324e-05,2]
[422808242,1779434397000,-5000.0,6.83e-05,2]
[422808243,1779434403000,-5000.0,6.83e-05,2]
[422808244,1779434425000,-5000.0,6.83e-05,2]
[422808245,1779434451000,-5000.0,6.83e-05,2]
[422808246,1779434484000,-5000.0,6.83e-05,2]
[422808247,1779434518000,-5000.0,6.83e-05,2]
[422808248,1779434535000,-5000.0,6.796e-05,2]
[422808250,1779434561000,-5000.0,6.796e-05,2]
[422808253,1779434589000,-5000.0,6.796e-05,2]
[422808254,1779434601000,-5000.0,6.796e-05,2]
[422808255,1779434625000,-5000.0,6.796e-05,2]
[422808259,1779434668000,-5000.0,6.796e-05,2]
[422808260,1779434691000,-5000.0,6.796e-05,2]
[422808262,1779434723000,-5000.0,6.796e-05,2]
[422808271,1779434741000,-181.62907658,7.197e-05,2]
[422808264,1779434741000,-2967.2640418,6.796e-05,2]
[422808265,1779434741000,-215.4092074,6.849e-05,2]
[422808266,1779434741000,-405.82336222,6.864e-05,2]
[422808269,1779434741000,-300.0,7.197e-05,2]
[422808267,1779434741000,-456.643312,6.899e-05,2]
[422808270,1779434741000,-300.0,7.197e-05,2]
[422808268,1779434741000,-173.231,7.152e-05,2]
[422808285,1779434984000,-151.0,6.849e-05,2]
[422808287,1779434984000,-151.0,6.849e-05,2]
[422808286,1779434984000,-456.643312,6.849e-05,2]
[422808328,1779435032000,-124.88745316,7.097e-05,2]
[422808324,1779435032000,-500.0,7.097e-05,2]
[422808322,1779435032000,-596.63825301,7.097e-05,2]
[422808326,1779435032000,-500.0,7.097e-05,2]
[422808314,1779435032000,-300.0,7.096e-05,2]
[422808327,1779435032000,-375.11254684,7.097e-05,2]
[422808318,1779435032000,-500.0,7.097e-05,2]
[422808315,1779435032000,-300.0,7.096e-05,2]
[422808313,1779435032000,-300.0,7.096e-05,2]
[422808312,1779435032000,-397.70689498,7.023e-05,2]
[422808317,1779435032000,-1200.0,7.096e-05,2]
[422808329,1779435032000,-500.0,7.097e-05,2]
[422808325,1779435032000,-500.0,7.097e-05,2]
[422808332,1779435032000,-500.0,7.097e-05,2]
[422808331,1779435032000,-500.0,7.097e-05,2]
[422808343,1779435032000,-10401.6444003,7.098e-05,2]
[422808341,1779435032000,-27835.97692667,7.098e-05,2]
[422808342,1779435032000,-2349.54111964,7.098e-05,2]
[422808337,1779435032000,-500.0,7.097e-05,2]
[422808330,1779435032000,-500.0,7.097e-05,2]
[422808334,1779435032000,-200.0,7.097e-05,2]
[422808320,1779435032000,-500.0,7.097e-05,2]
[422808338,1779435032000,-9092.61578214,7.098e-05,2]
[422808336,1779435032000,-500.0,7.097e-05,2]
[422808340,1779435032000,-1343.7500641,7.098e-05,2]
[422808335,1779435032000,-500.0,7.097e-05,2]
[422808339,1779435032000,-760.28885971,7.098e-05,2]
[422808333,1779435032000,-500.0,7.097e-05,2]
[422808399,1779435042000,-4752.06329729,7.098e-05,2]
[422808416,1779435042000,-438.66255434,7.098e-05,2]
[422808408,1779435042000,-2477.04716169,7.098e-05,2]
[422808400,1779435042000,-340999.37895873,7.098e-05,2]
[422808553,1779435043000,-879.09189318,7.098e-05,2]
[422808549,1779435043000,-3250.67284012,7.098e-05,2]
[422808487,1779435043000,-6625.51755511,7.098e-05,2]
[422808590,1779435044000,-10502.98590886,7.098e-05,2]
[422808597,1779435047000,-11503.19282246,7.098e-05,2]
[422808601,1779435074000,-300.0,7.097e-05,2]
[422808617,1779435244000,-4700.0,6.956e-05,2]
[422808616,1779435244000,-300.0,6.955e-05,2]
[422808622,1779435309000,-4290.739038,6.998e-05,2]
[422808621,1779435309000,-206.408,6.956e-05,2]
[422808619,1779435309000,-202.852962,6.768e-05,2]
[422808620,1779435309000,-300.0,6.956e-05,2]
[422808623,1779435349000,-5000.0,6.859e-05,2]
[422808624,1779435358000,-713.0,6.859e-05,2]
[422808625,1779435358000,-4287.0,6.928e-05,2]
[422808636,1779435434000,-3987.0,6.998e-05,2]
[422808635,1779435434000,-300.0,6.997e-05,2]
[422808634,1779435434000,-713.0,6.928e-05,2]
[422808680,1779435599000,-460.16562968,6.997e-05,2]
[422808670,1779435599000,-556.44773641,6.928e-05,2]
[422808672,1779435599000,-300.0,6.997e-05,2]
[422808671,1779435599000,-416.30556271,6.963e-05,2]
[422808674,1779435599000,-500.0,6.997e-05,2]
[422808673,1779435599000,-500.0,6.997e-05,2]
[422808677,1779435599000,-500.0,6.997e-05,2]
[422808675,1779435599000,-500.0,6.997e-05,2]
[422808678,1779435599000,-500.0,6.997e-05,2]
[422808679,1779435599000,-267.0810712,6.997e-05,2]
[422808676,1779435599000,-500.0,6.997e-05,2]
[422808686,1779435609000,-39.83437032,6.997e-05,2]
[422808682,1779435609000,-300.0,6.996e-05,2]
[422808681,1779435609000,-300.0,6.996e-05,2]
[422808684,1779435609000,-300.0,6.996e-05,2]
[422808685,1779435609000,-1200.0,6.996e-05,2]
[422808688,1779435609000,-500.0,6.997e-05,2]
[422808687,1779435609000,-500.0,6.997e-05,2]
[422808689,1779435609000,-500.0,6.997e-05,2]
[422808691,1779435609000,-500.0,6.997e-05,2]
[422808690,1779435609000,-300.0,6.997e-05,2]
[422808692,1779435609000,-260.16562968,6.997e-05,2]
[422808683,1779435609000,-300.0,6.996e-05,2]
[422808700,1779435722000,-5000.0,6.058e-05,2]
[422808704,1779435723000,-456.643312,6.881e-05,2]
[422808701,1779435723000,-2000.8787376,6.058e-05,2]
[422808703,1779435723000,-151.0,6.85e-05,2]
[422808702,1779435723000,-151.8392397,6.85e-05,2]
[422808705,1779435723000,-300.0,6.996e-05,2]
[422808708,1779435723000,-500.0,6.997e-05,2]
[422808709,1779435723000,-250.0,6.997e-05,2]
[422808707,1779435723000,-500.0,6.997e-05,2]
[422808710,1779435723000,-449.80434038,6.997e-05,2]
[422808706,1779435723000,-239.83437032,6.997e-05,2]
[422808712,1779435749000,-151.0,6.881e-05,2]
[422808714,1779435749000,-500.0,6.997e-05,2]
[422808717,1779435749000,-500.0,6.997e-05,2]
[422808715,1779435749000,-500.0,6.997e-05,2]
[422808716,1779435749000,-500.0,6.997e-05,2]
[422808713,1779435749000,-50.19565962,6.997e-05,2]
[422808718,1779435749000,-200.0,6.997e-05,2]
[422808721,1779435749000,-500.0,6.997e-05,2]
[422808720,1779435749000,-500.0,6.997e-05,2]
[422808723,1779435749000,-500.0,6.997e-05,2]
[422808722,1779435749000,-557.64677711,6.997e-05,2]
[422808724,1779435749000,-41.15756327,6.997e-05,2]
[422808719,1779435749000,-500.0,6.997e-05,2]
[422808725,1779435750000,-458.84243673,6.997e-05,2]
[422808728,1779435750000,-500.0,6.997e-05,2]
[422808726,1779435750000,-500.0,6.997e-05,2]
[422808727,1779435750000,-500.0,6.997e-05,2]
[422808730,1779435750000,-450.0,6.997e-05,2]
[422808731,1779435750000,-2091.15756327,6.998e-05,2]
[422808729,1779435750000,-500.0,6.997e-05,2]
[422808744,1779435849000,-4700.0,6.998e-05,2]
[422808743,1779435849000,-300.0,6.997e-05,2]
[422808745,1779435850000,-5000.0,6.998e-05,2]
[422808753,1779435903000,-500.0,6.897e-05,2]
[422808748,1779435903000,-300.0,6.896e-05,2]
[422808750,1779435903000,-300.0,6.896e-05,2]
[422808749,1779435903000,-300.0,6.896e-05,2]
[422808751,1779435903000,-500.0,6.897e-05,2]
[422808752,1779435903000,-500.0,6.897e-05,2]
[422808759,1779435903000,-300.0,6.897e-05,2]
[422808755,1779435903000,-500.0,6.897e-05,2]
[422808758,1779435903000,-200.0,6.897e-05,2]
[422808760,1779435903000,-100.0,6.897e-05,2]
[422808754,1779435903000,-500.0,6.897e-05,2]
[422808756,1779435903000,-500.0,6.897e-05,2]
[422808757,1779435903000,-500.0,6.897e-05,2]
[422808765,1779435912000,-500.0,6.897e-05,2]
[422808766,1779435912000,-2598.1021032,6.898e-05,2]
[422808764,1779435912000,-250.0,6.897e-05,2]
[422808762,1779435912000,-1200.0,6.896e-05,2]
[422808763,1779435912000,-151.8978968,6.897e-05,2]
[422808761,1779435912000,-300.0,6.896e-05,2]
[422808782,1779435980000,-456.643312,6.881e-05,2]
[422808783,1779435980000,-300.0,6.897e-05,2]
[422808781,1779435980000,-456.643312,6.881e-05,2]
[422808784,1779435980000,-3786.713376,6.898e-05,2]
[422808786,1779436040000,-300.0,6.897e-05,2]
[422808787,1779436040000,-4243.356688,6.898e-05,2]
[422808785,1779436040000,-456.643312,6.881e-05,2]
[422808792,1779436089000,-300.0,6.897e-05,2]
[422808793,1779436089000,-4700.0,6.898e-05,2]
[422808794,1779436099000,-4100.0,6.898e-05,2]
[422808796,1779436139000,-407.97945145,6.889e-05,2]
[422808797,1779436139000,-1298.25950525,6.898e-05,2]
[422808795,1779436139000,-293.7610433,6.881e-05,2]
[422808857,1779436233000,-300.0,6.897e-05,2]
[422808858,1779436233000,-1200.0,6.897e-05,2]
[422808860,1779436233000,-14427.70626561,6.898e-05,2]
[422808859,1779436233000,-300.0,6.897e-05,2]
[422808861,1779436233000,-1052.0,6.898e-05,2]
[422808863,1779436234000,-464.89277689,6.898e-05,2]
[422808920,1779436238000,-340999.37895873,6.898e-05,2]
[422808923,1779436238000,-1211.44172772,6.898e-05,2]
[422808919,1779436238000,-4606.7222871,6.898e-05,2]
[422808918,1779436238000,-99136.34779485,6.898e-05,2]
[422808986,1779436241000,-1202.22657072,6.898e-05,2]
[422808984,1779436241000,-1175.66510949,6.898e-05,2]
[422808985,1779436241000,-396.27900709,6.898e-05,2]
[422809018,1779436243000,-3316.75,6.898e-05,2]
[422809017,1779436243000,-5530.34486894,6.898e-05,2]
[422809024,1779436246000,-9834.24101738,6.898e-05,2]
[422809027,1779436247000,-2959.66,6.898e-05,2]
[422809028,1779436247000,-29609.59202924,6.898e-05,2]
[422809029,1779436247000,-2777.927385,6.898e-05,2]
[422809026,1779436247000,-39250.0,6.898e-05,2]
[422809025,1779436247000,-21197.77205429,6.898e-05,2]
[422809039,1779436557000,-517.874,6.797e-05,2]
[422809038,1779436557000,-300.0,6.797e-05,2]
[422809037,1779436557000,-300.0,6.797e-05,2]
[422809035,1779436557000,-165.126,6.76e-05,2]
[422809036,1779436557000,-300.0,6.797e-05,2]
[422809043,1779436698000,-682.126,6.797e-05,2]
[422809041,1779436698000,-5000.0,6.729e-05,2]
[422809042,1779436698000,-300.0,6.796e-05,2]
[422809044,1779436698000,-500.0,6.797e-05,2]
[422809049,1779436698000,-500.0,6.797e-05,2]
[422809045,1779436698000,-500.0,6.797e-05,2]
[422809047,1779436698000,-500.0,6.797e-05,2]
[422809048,1779436698000,-205.35274397,6.797e-05,2]
[422809050,1779436698000,-500.0,6.797e-05,2]
[422809046,1779436698000,-500.0,6.797e-05,2]
[422809052,1779436699000,-312.52125603,6.797e-05,2]
[422809051,1779436699000,-500.0,6.797e-05,2]
[422809092,1779437432000,-1789.0263642,6.401e-05,2]
[422809100,1779437432000,-431.35761808,6.434e-05,2]
[422809102,1779437432000,-165.126,6.466e-05,2]
[422809104,1779437432000,-1005.0,6.595e-05,2]
[422809098,1779437432000,-3210.9736358,6.401e-05,2]
[422809106,1779437432000,-300.0,6.596e-05,2]
[422809112,1779437432000,-500.0,6.597e-05,2]
[422809110,1779437432000,-500.0,6.597e-05,2]
[422809108,1779437432000,-500.0,6.597e-05,2]
[422809116,1779437432000,-500.0,6.597e-05,2]
[422809118,1779437432000,-500.0,6.597e-05,2]
[422809120,1779437432000,-210.45363184,6.597e-05,2]
[422809122,1779437432000,-52.67044439,6.597e-05,2]
[422809129,1779437432000,-323.73327835,6.597e-05,2]
[422809124,1779437432000,-500.0,6.597e-05,2]
[422809131,1779437432000,-477.71131226,6.597e-05,2]
[422809125,1779437432000,-500.0,6.597e-05,2]
[422809114,1779437432000,-500.0,6.597e-05,2]
[422809127,1779437432000,-500.0,6.597e-05,2]
[422809166,1779437438000,-367.82656361,6.597e-05,2]
[422809164,1779437438000,-500.0,6.597e-05,2]
[422809160,1779437438000,-219.86086848,6.597e-05,2]
[422809159,1779437438000,-500.0,6.597e-05,2]
[422809158,1779437438000,-500.0,6.597e-05,2]
[422809162,1779437438000,-500.0,6.597e-05,2]
[422809161,1779437438000,-500.0,6.597e-05,2]
[422809157,1779437438000,-22.28868774,6.597e-05,2]
[422809165,1779437438000,-500.0,6.597e-05,2]
[422809163,1779437438000,-500.0,6.597e-05,2]
[422809170,1779437438000,-500.0,6.597e-05,2]
[422809175,1779437438000,-500.0,6.597e-05,2]
[422809167,1779437438000,-500.0,6.597e-05,2]
[422809180,1779437438000,-15079.27885294,6.598e-05,2]
[422809169,1779437438000,-500.0,6.597e-05,2]
[422809178,1779437438000,-402.06621678,6.597e-05,2]
[422809176,1779437438000,-500.0,6.597e-05,2]
[422809174,1779437438000,-500.0,6.597e-05,2]
[422809177,1779437438000,-500.0,6.597e-05,2]
[422809172,1779437438000,-500.0,6.597e-05,2]
[422809171,1779437438000,-500.0,6.597e-05,2]
[422809179,1779437438000,-500.0,6.597e-05,2]
[422809168,1779437438000,-500.0,6.597e-05,2]
[422809173,1779437438000,-500.0,6.597e-05,2]
[422809262,1779437441000,-18.19900665,6.598e-05,2]
[422809296,1779437443000,-10938.71562326,6.598e-05,2]
[422809314,1779437446000,-1607.50592395,6.598e-05,2]
[422809316,1779437447000,-288.87684538,6.598e-05,2]
[422809315,1779437447000,-913.16462821,6.598e-05,2]
[422809480,1779438633000,-199.53205766,6.091e-05,2]
[422809479,1779438633000,-250.24416842,6.019e-05,2]
[422809484,1779438633000,-75.5112629,6.313e-05,2]
[422809483,1779438633000,-967.51854187,6.091e-05,2]
[422809482,1779438633000,-2731.13162073,6.091e-05,2]
[422809481,1779438633000,-1101.81777974,6.091e-05,2]
[422809539,1779438643000,-5000.0,6.25e-05,2]
[422809547,1779438643000,-300.0,6.927e-05,2]
[422809544,1779438643000,-152.0,6.909e-05,2]
[422809543,1779438643000,-152.0,6.909e-05,2]
[422809541,1779438643000,-152.0,6.882e-05,2]
[422809542,1779438643000,-152.0,6.882e-05,2]
[422809545,1779438643000,-152.0,6.916e-05,2]
[422809551,1779438643000,-152.0,6.933e-05,2]
[422809548,1779438643000,-3530.87,6.928e-05,2]
[422809546,1779438643000,-152.0,6.916e-05,2]
[422809550,1779438643000,-152.0,6.933e-05,2]
[422809549,1779438643000,-1765.43,6.928e-05,2]
[422809553,1779438643000,-291.55124363,7.039e-05,2]
[422809552,1779438643000,-1705.89465518,7.026e-05,3]
[422809554,1779438643000,-1165.03876955,7.039e-05,2]
[422809555,1779438643000,-434.65515053,7.047e-05,2]
[422809556,1779438643000,-1738.6206021,7.047e-05,2]
[422809558,1779438643000,-1440.31668945,7.047e-05,2]
[422809557,1779438643000,-3907.98445838,7.047e-05,2]
[422809559,1779438643000,-5761.26675781,7.047e-05,2]
[422809560,1779438643000,-191.09565205,7.095e-05,2]
[422809540,1779438643000,-347.21920281,6.313e-05,2]
[422809566,1779438644000,-825.17596418,7.096e-05,2]
[422809563,1779438644000,-170.676,7.095e-05,2]
[422809564,1779438644000,-912.14525389,7.096e-05,2]
[422809565,1779438644000,-3648.58101556,7.096e-05,2]
[422809561,1779438644000,-651.98072929,7.095e-05,2]
[422809572,1779438644000,-142.87159869,7.201e-05,2]
[422809569,1779438644000,-359.0,7.197e-05,2]
[422809567,1779438644000,-3297.40315287,7.096e-05,2]
[422809570,1779438644000,-500.0,7.201e-05,2]
[422809568,1779438644000,-2667.18382648,7.096e-05,3]
[422809571,1779438644000,-364.80969791,7.201e-05,2]
[422809562,1779438644000,-600.22957964,7.095e-05,2]
[422809599,1779438673000,-1365.59530134,7.025e-05,2]
[422809613,1779439182000,-200.0,6.693e-05,7]
[422809677,1779439832000,-300.0,6.366e-05,2]
[422809673,1779439832000,-300.0,6.366e-05,2]
[422809671,1779439832000,-1200.0,6.242e-05,2]
[422809670,1779439832000,-300.0,6.239e-05,2]
[422809669,1779439832000,-300.0,6.239e-05,2]
[422809666,1779439832000,-210.37717517,6.053e-05,2]
[422809664,1779439832000,-1200.0,5.675e-05,2]
[422809665,1779439832000,-2670.0738311,5.676e-05,2]
[422809667,1779439832000,-300.0,6.239e-05,2]
[422809663,1779439832000,-200.0,5.651e-05,2]
[422809662,1779439832000,-442.79299643,5.605e-05,2]
[422809661,1779439832000,-5000.0,5.452e-05,2]
[422809668,1779439832000,-300.0,6.239e-05,2]
[422809675,1779439832000,-300.0,6.366e-05,2]
[422809688,1779439832000,-300.0,6.366e-05,2]
[422809683,1779439832000,-300.0,6.366e-05,2]
[422809681,1779439832000,-300.0,6.366e-05,2]
[422809702,1779439832000,-93.94638887,6.5e-05,2]
[422809700,1779439832000,-151.0,6.5e-05,2]
[422809701,1779439832000,-151.0,6.5e-05,2]
[422809698,1779439832000,-300.0,6.366e-05,2]
[422809699,1779439832000,-300.0,6.366e-05,2]
[422809697,1779439832000,-300.0,6.366e-05,2]
[422809685,1779439832000,-300.0,6.366e-05,2]
[422809695,1779439832000,-80.38781714,6.366e-05,2]
[422809696,1779439832000,-300.0,6.366e-05,2]
[422809679,1779439832000,-300.0,6.366e-05,2]
[422809686,1779439832000,-300.0,6.366e-05,2]
[422809691,1779439832000,-300.0,6.366e-05,2]
[422809693,1779439832000,-219.61218286,6.366e-05,2]
[422809718,1779439838000,-57.05361113,6.5e-05,2]
[422809719,1779439838000,-152.0,6.692e-05,7]
[422809720,1779439838000,-42.64728076,6.692e-05,7]
[422809762,1779439841000,-5305.70864763,6.696e-05,2]
[422809754,1779439841000,-2532.79921374,6.696e-05,2]
[422809752,1779439841000,-170.676,6.695e-05,2]
[422809750,1779439841000,-500.0,6.695e-05,2]
[422809748,1779439841000,-562.50530893,6.695e-05,2]
[422809746,1779439841000,-500.0,6.695e-05,2]
[422809745,1779439841000,-152.0,6.694e-05,7]
[422809742,1779439841000,-109.35271924,6.692e-05,7]
[422809893,1779439844000,-396.54944253,6.696e-05,2]
[422809895,1779439844000,-16063.48286025,6.696e-05,2]
[422809896,1779439844000,-271.00455549,6.696e-05,2]
[422809899,1779439844000,-819.30227355,6.696e-05,2]
[422809898,1779439844000,-1598.04860122,6.696e-05,2]
[422809900,1779439844000,-359.66901507,6.696e-05,2]
[422809897,1779439844000,-6737.03391632,6.696e-05,2]
[422809914,1779439847000,-5064.35616059,6.696e-05,2]
[422809913,1779439847000,-150141.95847053,6.696e-05,2]
[422809912,1779439847000,-4903.28765284,6.696e-05,2]
[422809911,1779439847000,-9499.90570238,6.696e-05,2]
[422809947,1779440436000,-5000.0,5.905e-05,2]
[422809948,1779440454000,-433.9371365,5.995e-05,2]
[422809951,1779440472000,-5000.0,6e-05,2]
[422809954,1779440489000,-326.9354991,6.025e-05,2]
[422809955,1779440507000,-456.643312,6.025e-05,2]
[422809956,1779440525000,-226.91,6.524e-05,2]
[422809958,1779440542000,-170.676,6.562e-05,2]
[422809959,1779440559000,-300.0,6.595e-05,2]
[422809960,1779440578000,-300.0,6.595e-05,2]
[422810003,1779441032000,-2576.20618245,5.907e-05,2]
[422810002,1779441032000,-274.64822023,5.907e-05,2]
[422810452,1779441042000,-33.43060759,6.027e-05,2]
[422810450,1779441042000,-300.0,6.027e-05,2]
[422810448,1779441042000,-425.25839377,5.997e-05,2]
[422810446,1779441042000,-2149.14559732,5.907e-05,2]
[422810959,1779441047000,-300.0,6.147e-05,2]
[422810961,1779441047000,-300.0,6.147e-05,2]
[422810958,1779441047000,-300.0,6.147e-05,2]
[422810954,1779441047000,-300.0,6.147e-05,2]
[422810956,1779441047000,-300.0,6.147e-05,2]
[422810974,1779441047000,-152.0,6.739e-05,2]
[422810957,1779441047000,-300.0,6.147e-05,2]
[422810973,1779441047000,-152.0,6.727e-05,2]
[422810955,1779441047000,-300.0,6.147e-05,2]
[422810952,1779441047000,-151.433808,6.028e-05,2]
[422810951,1779441047000,-151.0,6.028e-05,2]